bitfinex/quotes_ETHUSD_20260305
["timestamp","ask_amount","ask_price","bid_price","bid_amount"]
[1772698487999,1.54945892,2098.1,2097.6,0.0011]
[1772698488519,1.54945892,2097.9,2097.6,0.0011]
[1772698488721,2.73628572,2097.8,2097.6,0.0011]
[1772698488902,1.54456106,2097.7,2097.6,0.0011]
[1772698490235,1.54456106,2097.7,2097.4,0.0011]
[1772698490444,1.54456106,2097.7,2097.4,1.1961]
[1772698490643,1.94456106,2098.0,2097.4,1.1961]
[1772698490950,3.13621576,2098.0,2097.4,3.96633587]
[1772698491609,0.4,2098.0,2097.5,1.57833012]
[1772698492729,0.4,2098.0,2097.8,0.0011]
[1772698493134,0.001,2097.9,2097.8,0.0011]
[1772698495238,0.4,2098.0,2097.8,1.57943012]
[1772698495451,0.4,2098.0,2097.9,1.196]
[1772698497638,1.59161105,2098.0,2097.9,1.196]
[1772698497814,0.4,2098.0,2097.9,1.196]
[1772698498147,3.13617211,2098.0,2097.8,0.0011]
[1772698498300,3.13617211,2098.0,2097.9,1.196]
[1772698499100,2.34856106,2097.9,2097.8,0.0011]
[1772698499743,1.54456106,2097.8,2097.5,0.0011]
[1772698500302,1.54456106,2097.7,2097.3,0.0011]
[1772698500505,1.54456106,2097.7,2097.3,0.0033]
[1772698500932,1.54456106,2097.7,2097.1,2.27285712]
[1772698501231,1.54456106,2097.7,2096.9,0.0011]
[1772698501232,1.54456106,2097.6,2096.9,0.0011]
[1772698501540,9.42106098,2097.8,2097.0,2.77368683]
[1772698501541,2.60969579,2097.8,2097.0,2.77368683]
[1772698501721,0.804,2097.9,2097.0,2.77368683]
[1772698501722,0.804,2097.9,2097.1,1.57833012]
[1772698501930,0.4,2098.0,2097.2,1.57833012]
[1772698502222,0.4,2098.0,2097.3,2.77533012]
[1772698503248,0.4,2098.0,2097.2,1.19535671]
[1772698503249,1.94456106,2098.0,2097.4,3.46821383]
[1772698503406,1.54456106,2097.9,2097.4,2.27285712]
[1772698503733,1.54456106,2097.9,2097.2,1.197]
[1772698503935,1.54456106,2097.7,2096.9,0.0011]
[1772698504135,1.54456106,2097.7,2096.9,3.46931383]
[1772698505331,2.73634253,2097.7,2097.6,0.0011]
[1772698505635,1.54456106,2097.7,2097.6,0.0011]
[1772698506551,0.001,2097.9,2097.6,0.0011]
[1772698507133,1.54456106,2097.8,2097.4,0.0011]
[1772698507335,1.54456106,2097.8,2097.5,3.46821383]
[1772698507633,1.54556106,2097.9,2097.5,2.27285712]
[1772698507934,1.54556106,2097.9,2097.4,0.0011]
[1772698508134,1.54556106,2097.9,2097.6,2.27285712]
[1772698508341,1.54556106,2097.9,2097.4,0.0011]
[1772698510024,0.001,2097.9,2097.5,3.46821383]
[1772698511119,0.001,2097.9,2097.5,2.27285712]
[1772698511342,0.001,2097.9,2097.6,1.19535671]
[1772698511543,0.001,2097.9,2097.7,2.27285712]
[1772698512746,0.30762728,2098.0,2097.8,1.19535671]
[1772698513046,0.001,2098.6,2098.0,1.57833012]
[1772698513221,0.34443285,2099.0,2098.0,1.57833012]
[1772698513422,0.34443285,2099.0,2098.2,1.57833012]
[1772698513751,0.34443285,2099.0,2098.3,1.19144069]
[1772698513950,0.34443285,2099.0,2098.3,2.76977081]
[1772698514476,1.54556106,2099.1,2098.3,2.76977081]
[1772698514637,1.54556106,2099.1,2098.4,3.46721383]
[1772698514839,1.54456106,2099.0,2098.4,3.46721383]
[1772698515354,1.54556106,2099.1,2098.5,1.19535671]
[1772698516656,1.54556106,2099.1,2098.5,2.38667694]
[1772698516848,1.54556106,2099.1,2098.5,1.19535671]
[1772698517024,1.54456106,2099.0,2098.6,3.46721383]
[1772698517229,1.54456106,2099.0,2098.2,1.196]
[1772698517628,1.54456106,2099.0,2097.5,4.76742489]
[1772698517629,1.54456106,2098.9,2097.7,1.57833012]
[1772698517843,1.54556106,2098.9,2097.8,1.196]
[1772698518043,1.54556106,2098.9,2097.8,4.66321383]
[1772698518222,1.54456106,2098.7,2097.8,4.66321383]
[1772698518433,1.54456106,2098.7,2097.8,5.85492439]
[1772698518835,1.54456106,2098.7,2097.8,7.50519732]
[1772698519547,1.54456106,2098.7,2097.8,5.2333402]
[1772698520561,1.54456106,2098.7,2097.9,3.46721383]
[1772698520562,1.67960465,2098.6,2097.9,3.46721383]
[1772698520731,1.67960465,2098.6,2097.6,3.46785712]
[1772698520927,1.67960465,2098.6,2097.7,2.84562964]
[1772698521125,1.67960465,2098.6,2097.8,2.27185712]
[1772698521570,1.67960465,2098.6,2097.8,3.46785712]
[1772698521858,1.67960465,2098.6,2097.9,1.19535671]
[1772698522062,1.67960465,2098.6,2097.8,2.15141446]
[1772698522248,1.67960465,2098.6,2097.8,1.87084123]
[1772698522762,1.67960465,2098.4,2097.8,1.87084123]
[1772698524149,1.67960465,2098.2,2097.4,0.0011]
[1772698524456,1.67960465,2098.2,2097.5,1.87084123]
[1772698524643,1.67960465,2098.0,2097.5,1.87084123]
[1772698525750,1.19147465,2098.3,2097.5,3.52111416]
[1772698525952,4.76574914,2098.4,2097.5,4.71300208]
[1772698525953,1.19141107,2098.4,2097.5,4.71300208]
[1772698526260,2.87101572,2098.4,2097.5,4.71299895]
[1772698526981,1.67960465,2098.4,2097.5,4.71299895]
[1772698527156,1.19129271,2098.6,2097.7,1.6428916]
[1772698527476,6.44446037,2098.7,2097.9,1.6428916]
[1772698527477,1.67960465,2098.7,2097.9,1.6428916]
[1772698527684,1.19211475,2098.9,2098.0,3.51373283]
[1772698527835,1.60262251,2098.8,2098.0,1.6428916]
[1772698528178,1.60262251,2098.8,2097.7,1.6428916]
[1772698528382,1.60262251,2098.8,2097.8,1.6428916]
[1772698528752,1.1912136,2098.7,2097.9,1.6428916]
[1772698528959,2.79383611,2098.7,2097.9,1.6428916]
[1772698530237,1.60362251,2098.5,2098.0,1.87084123]
[1772698531367,1.60362251,2098.5,2098.0,3.06243563]
[1772698531368,0.001,2098.5,2098.0,3.06243563]
[1772698531766,1.60362251,2098.9,2098.1,1.6428916]
[1772698531967,0.001,2098.9,2098.1,1.6428916]
[1772698532274,0.001,2098.9,2098.3,1.6428916]
[1772698532482,0.001,2098.9,2098.5,1.6428916]
[1772698532976,0.001,2099.1,2098.7,2.8341052]
[1772698533177,0.001,2099.1,2098.6,1.86984123]
[1772698533578,1.60362251,2099.1,2098.6,1.86984123]
[1772698533754,1.60362251,2099.1,2098.1,1.6428916]
[1772698534159,1.60362251,2099.1,2098.1,2.83443225]
[1772698534355,1.60362251,2099.1,2098.2,1.86984123]
[1772698534356,1.60262251,2099.0,2098.2,1.86984123]
[1772698534564,1.60262251,2099.0,2098.2,3.51273283]
[1772698534971,2.79370453,2099.0,2098.2,4.70422294]
[1772698535148,2.79370453,2099.0,2098.2,3.51273283]
[1772698536390,4.37148078,2098.9,2098.2,1.86984123]
[1772698536574,0.001,2099.1,2098.3,1.6428916]
[1772698537055,1.60262251,2099.0,2098.4,1.86984123]
[1772698537255,1.60262251,2099.0,2098.1,2.38551771]
[1772698537552,1.60262251,2099.0,2098.2,1.86984123]
[1772698538499,1.60262251,2099.0,2098.1,4.02840931]
[1772698538653,1.60262251,2099.0,2098.2,3.51273283]
[1772698538848,0.001,2099.1,2098.4,1.6428916]
[1772698539183,1.60262251,2099.0,2098.5,1.86984123]
[1772698539390,1.60262251,2099.0,2098.3,1.86984123]
[1772698539573,1.60262251,2099.0,2098.2,3.06133419]
[1772698539769,1.60262251,2099.0,2098.2,1.86984123]
[1772698540757,2.77142062,2098.9,2098.2,1.86984123]
[1772698541085,5.56519397,2098.9,2098.2,1.86984123]
[1772698541286,2.79377335,2098.9,2098.2,1.86984123]
[1772698541901,1.60262251,2098.9,2098.2,3.06133426]
[1772698542061,1.19202566,2099.1,2098.2,3.06133426]
[1772698542062,2.79464817,2099.1,2098.3,1.6428916]
[1772698542267,2.77141636,2099.0,2098.3,1.6428916]
[1772698543089,2.77141636,2099.0,2098.3,2.83431379]
[1772698543264,3.96246782,2099.0,2098.3,2.83431379]
[1772698543468,2.79367397,2099.0,2098.3,1.6428916]
[1772698543783,2.79367397,2099.0,2098.2,1.86984123]
[1772698543986,4.37404214,2098.9,2098.2,1.86984123]
[1772698544154,2.77185294,2098.8,2098.4,0.0011]
[1772698544359,1.60262251,2098.7,2098.2,1.86984123]
[1772698545377,2.79383951,2098.7,2098.2,1.86984123]
[1772698545580,1.60262251,2098.6,2098.2,1.86984123]
[1772698546155,2.79382603,2098.8,2098.2,1.86984123]
[1772698546356,2.77254948,2098.7,2098.2,1.86984123]
[1772698546561,0.001,2098.9,2098.3,1.6428916]
[1772698547297,0.001,2098.9,2098.5,1.6428916]
[1772698547856,0.001,2098.9,2098.6,1.86984123]
[1772698548063,0.001,2099.1,2098.7,1.6428916]
[1772698548302,0.001,2099.1,2098.8,1.6428916]
[1772698548993,0.001,2099.1,2098.9,1.86884123]
[1772698549607,0.001,2099.1,2098.8,2.83400764]
[1772698549808,0.001,2099.1,2098.9,1.86884123]
[1772698550894,0.001,2099.5,2098.9,1.6341462]
[1772698551092,0.001,2099.5,2099.1,1.6341462]
[1772698551697,0.001,2099.5,2099.0,1.86884123]
[1772698551893,0.001,2099.5,2099.1,1.6341462]
[1772698552401,0.34636428,2099.8,2099.3,1.6341462]
[1772698552611,0.34636428,2099.8,2099.4,1.194]
[1772698552813,0.34636428,2099.8,2099.5,1.6341462]
[1772698553012,1.71686227,2100.4,2099.5,1.6341462]
[1772698553317,2.90712398,2100.4,2099.6,3.50298743]
[1772698553814,1.71686227,2100.4,2099.7,1.19064628]
[1772698554015,1.19023041,2100.5,2099.8,1.6341462]
[1772698554192,4.76160568,2100.6,2099.8,1.6341462]
[1772698554193,1.19118018,2100.6,2099.8,3.50298743]
[1772698554894,1.19114202,2100.6,2099.9,1.6341462]
[1772698555103,1.71686227,2100.5,2099.8,1.86884123]
[1772698555302,0.298013,2099.5,2099.4,2.38479642]
[1772698555499,0.298013,2099.5,2099.4,1.19079642]
[1772698555813,0.298013,2099.5,2099.4,2.38479642]
[1772698556214,1.71686227,2100.1,2099.4,2.38479642]
[1772698556391,2.90728586,2100.1,2099.5,1.86884123]
[1772698557208,1.1902294,2100.5,2099.6,1.6341462]
[1772698557381,1.71686227,2100.5,2099.8,1.6341462]
[1772698557588,1.19116397,2100.6,2099.8,1.6341462]
[1772698557916,1.19116397,2100.6,2099.9,1.86884123]
[1772698558213,0.76359729,2100.3,2099.4,1.6341462]
[1772698559502,0.76359729,2100.3,2099.5,1.6341462]
[1772698559691,2.00776945,2100.4,2099.5,1.6341462]
[1772698559889,0.81751998,2100.3,2099.5,1.6341462]
[1772698560085,1.19036282,2100.2,2099.4,2.82496248]
[1772698560307,1.19036282,2100.2,2099.4,1.19081628]
[1772698560498,1.19036282,2100.2,2099.5,1.6341462]
[1772698560707,0.81751998,2100.3,2099.5,1.6341462]
[1772698561017,2.0070373,2100.4,2099.5,1.6341462]
[1772698561221,0.065536,2100.3,2099.5,1.6341462]
[1772698561397,1.19117906,2100.6,2099.5,1.6341462]
[1772698562513,1.19117906,2100.6,2099.7,1.6341462]
[1772698562709,0.001,2100.6,2099.7,1.6341462]
[1772698562913,0.001,2101.1,2099.7,1.6341462]
[1772698563094,0.001,2101.1,2099.6,1.19070299]
[1772698563095,0.001,2101.1,2099.9,1.6341462]
[1772698563292,0.001,2101.4,2100.1,1.6341462]
[1772698563986,1.19068451,2101.4,2100.3,1.6341462]
[1772698564184,1.19068451,2101.4,2100.5,1.6341462]
[1772698564409,0.001,2101.4,2100.8,1.6341462]
[1772698565710,0.001,2101.4,2100.5,1.19015381]
[1772698566022,0.001,2101.4,2100.7,1.6341462]
[1772698566419,0.001,2101.4,2100.8,1.6341462]
[1772698567602,0.001,2101.4,2100.5,2.8281462]
[1772698567995,0.001,2101.4,2100.5,4.01833419]
[1772698568192,0.001,2101.4,2100.5,1.6341462]
[1772698568425,1.19068306,2101.4,2100.5,1.6341462]
[1772698568624,0.81085283,2101.1,2100.2,1.6341462]
[1772698568921,2.04387427,2101.2,2100.3,0.0011]
[1772698569124,2.04387427,2100.9,2099.4,1.19081642]
[1772698569305,1.71686227,2100.8,2099.6,1.6341462]
[1772698569491,1.71686227,2100.8,2100.0,0.0011]
[1772698570519,1.71686227,2100.6,2100.0,0.0011]
[1772698570893,1.71686227,2100.6,2099.8,0.0011]
[1772698571422,3.23395376,2100.7,2099.8,0.0011]
[1772698571423,1.71686227,2100.3,2099.8,0.0011]
[1772698572495,0.065536,2100.5,2099.8,0.0011]
[1772698572797,1.78239827,2100.3,2099.8,0.0011]
[1772698573603,1.19024947,2100.4,2099.8,0.0011]
[1772698574209,2.90711174,2100.4,2099.8,0.0011]
[1772698574999,1.71686227,2100.3,2099.8,0.0011]
[1772698575599,1.19024947,2100.4,2099.8,0.0011]
[1772698576730,6.47786017,2100.5,2099.8,0.0011]
[1772698576930,0.065536,2100.4,2099.8,0.0011]
[1772698577135,4.7609979,2100.5,2099.8,0.0011]
[1772698577332,1.19007949,2100.7,2099.8,1.6352462]
[1772698578901,1.19007949,2100.7,2099.8,2.82582824]
[1772698579103,1.19007949,2100.7,2099.8,1.6352462]
[1772698579302,0.065536,2100.6,2099.8,1.6352462]
[1772698581138,8.49219225,2100.9,2100.0,1.64070726]
[1772698581139,2.87802284,2100.9,2100.0,1.64070726]
[1772698581308,4.76012802,2100.8,2100.0,1.64070726]
[1772698582073,1.18985293,2101.1,2100.0,1.64070726]
[1772698582611,1.19083006,2101.2,2100.0,1.64070726]
[1772698583005,0.001,2101.2,2100.0,1.64070726]
[1772698583228,0.001,2101.2,2100.2,1.63960726]
[1772698583434,0.001,2101.2,2100.3,1.63960726]
[1772698585206,0.001,2101.2,2100.5,1.63960726]
[1772698587243,0.001,2101.2,2100.5,2.82977443]
[1772698587669,1.6525147,2101.2,2100.1,1.6048578]
[1772698587859,1.6525147,2101.2,2100.2,1.6048578]
[1772698588061,1.6515147,2100.9,2100.0,1.19154378]
[1772698589275,1.7170507,2100.8,2100.0,1.1915736]
[1772698589446,2.84159419,2100.7,2100.0,0.0011]
[1772698589636,1.6515147,2100.6,2100.0,0.0011]
[1772698590142,1.19007949,2100.7,2100.0,0.0011]
[1772698591839,6.41149412,2100.9,2100.0,0.0011]
[1772698592094,1.18985293,2101.1,2100.0,1.6059578]
[1772698592366,9.09672931,2101.2,2100.0,1.6059578]
[1772698592367,1.001,2101.2,2100.0,1.6059578]
[1772698593579,0.001,2100.5,2100.2,1.6048578]
[1772698593783,0.001,2100.5,2100.1,1.1904195]
[1772698593784,0.001,2101.4,2100.4,1.6048578]
[1772698594166,1.1906999,2101.4,2100.6,1.6048578]
[1772698594482,1.19069123,2101.4,2100.6,1.6048578]
[1772698594674,1.19069123,2101.4,2100.7,1.186]
[1772698594862,1.19069123,2101.4,2100.6,1.6048578]
[1772698595176,0.001,2101.4,2100.6,2.7908578]
[1772698595381,0.001,2101.4,2100.7,1.6048578]
[1772698595576,0.001,2101.4,2100.8,2.79488064]
[1772698596577,0.001,2101.4,2100.7,1.19004323]
[1772698596944,0.001,2101.4,2100.8,1.6048578]
[1772698597357,0.001,2101.4,2100.8,2.7918578]
[1772698597749,0.001,2101.4,2100.8,2.79484066]
[1772698597974,0.001,2101.4,2100.8,3.98184066]
[1772698598160,0.001,2101.4,2100.9,1.6048578]
[1772698599678,0.001,2101.4,2101.0,1.188]
[1772698599883,0.001,2101.4,2101.1,1.18985293]
[1772698600375,4.75732572,2102.1,2101.1,2.79471073]
[1772698600584,6.40884042,2102.1,2101.1,2.79471073]
[1772698601350,1.6515147,2102.0,2101.1,3.98271073]
[1772698601588,1.18916527,2102.4,2101.2,1.6048578]
[1772698601880,4.75646193,2102.5,2101.4,1.6048578]
[1772698602052,1.6515147,2102.4,2101.4,1.6048578]
[1772698602255,1.6515147,2102.4,2101.5,1.6048578]
[1772698602578,1.6515147,2102.4,2101.6,1.6048578]
[1772698602748,1.18883446,2103.0,2101.6,1.6048578]
[1772698603677,0.34309806,2103.3,2101.6,1.6048578]
[1772698603882,1.18864863,2103.3,2102.2,1.6048578]
[1772698604079,1.18864863,2103.3,2102.4,1.6048578]
[1772698604274,1.6515147,2103.2,2102.1,4.09601714]
[1772698604450,1.6515147,2103.2,2102.1,5.28501714]
[1772698604652,1.6515147,2103.2,2102.2,1.6048578]
[1772698604851,1.18864863,2103.3,2102.2,1.6048578]
[1772698605049,1.18862813,2103.3,2102.2,1.6048578]
[1772698605246,2.00916404,2103.4,2102.2,1.6048578]
[1772698606081,2.00916404,2103.4,2102.4,1.6048578]
[1772698606278,0.001,2103.0,2102.4,1.6048578]
[1772698606454,0.001,2103.0,2102.4,2.7948578]
[1772698607252,0.001,2103.0,2102.5,1.6048578]
[1772698608173,0.001,2103.0,2102.5,2.79389059]
[1772698608892,0.001,2103.0,2102.5,2.95957028]
[1772698609066,0.82057009,2103.4,2102.6,1.77053749]
[1772698609385,0.82057009,2103.4,2102.5,1.18903279]
[1772698609386,3.74817667,2103.4,2102.5,1.18903279]
[1772698609553,1.73905255,2103.2,2102.2,4.75683055]
[1772698610454,1.18872141,2103.1,2102.2,4.75683055]
[1772698610680,1.18872141,2103.1,2102.2,1.18923033]
[1772698611363,2.92777396,2103.1,2102.1,6.64094165]
[1772698612599,4.75488564,2103.2,2102.2,1.77053749]
[1772698612600,1.18870453,2103.2,2102.2,1.77053749]
[1772698613156,2.92775708,2103.2,2102.2,1.77053749]
[1772698613462,1.73905255,2103.1,2102.2,2.96153749]
[1772698613856,1.73905255,2103.1,2102.3,1.191]
[1772698614259,1.73905255,2103.1,2102.2,1.77053749]
[1772698614559,2.92783048,2103.0,2102.2,1.18921678]
[1772698614964,2.92783048,2103.0,2102.0,4.75735284]
[1772698615257,2.92783048,2103.0,2102.1,1.191]
[1772698616151,2.92783048,2103.0,2101.9,1.77053749]
[1772698616357,1.73905255,2102.9,2102.0,2.37934348]
[1772698616885,1.188891,2102.8,2102.1,1.19]
[1772698617188,1.73905255,2102.7,2102.0,1.18934348]
[1772698617392,1.73905255,2102.7,2101.7,1.18951325]
[1772698618162,1.188891,2102.8,2101.8,1.77053749]
[1772698618390,2.9278707,2103.0,2101.8,1.77053749]
[1772698618577,4.7547749,2103.2,2102.3,1.77163749]
[1772698618760,0.001,2102.8,2102.3,2.96163749]
[1772698618956,0.001,2102.8,2102.3,4.15075846]
[1772698619659,0.001,2102.8,2102.3,2.96075846]
[1772698619992,0.001,2102.8,2102.4,1.191]
[1772698620377,0.001,2102.8,2102.4,2.96153749]
[1772698620968,0.001,2102.8,2102.4,1.191]
[1772698621689,0.001,2102.8,2102.4,2.38010763]
[1772698622591,0.001,2102.8,2102.4,4.15064512]
[1772698623505,0.001,2102.8,2102.5,1.77053749]
[1772698624273,2.00917813,2103.4,2102.5,1.77053749]
[1772698625407,2.00917813,2103.4,2102.6,2.95954158]
[1772698625883,3.74823068,2103.4,2102.6,1.77053749]
[1772698626086,1.73905255,2103.3,2102.6,1.191]
[1772698626304,1.73905255,2103.3,2102.5,1.191]
[1772698626603,1.73905255,2103.3,2102.3,2.96077054]
[1772698626774,1.73905255,2103.3,2102.4,2.96153749]
[1772698627485,1.18866489,2103.2,2102.4,4.15062457]
[1772698627681,1.18866489,2103.2,2102.3,0.0011]
[1772698627682,1.73905255,2102.9,2102.3,0.0011]
[1772698628107,1.73905255,2102.7,2102.0,0.0011]
[1772698628607,2.03541839,2103.0,2102.0,1.19043301]
[1772698628608,4.5126085,2102.6,2102.0,1.19043301]
[1772698628803,1.73905255,2102.6,2102.0,1.19043301]
[1772698629009,1.73905255,2102.6,2102.0,0.0011]
[1772698629507,1.18906064,2102.5,2102.0,0.0011]
[1772698630095,1.73905255,2102.4,2102.0,0.0011]
[1772698631691,1.73905255,2102.7,2102.0,0.0011]
[1772698631889,1.18894809,2102.7,2102.0,1.77163749]
[1772698632088,2.92800064,2102.7,2102.4,0.0011]
[1772698632312,1.73905255,2102.6,2102.4,0.0011]
[1772698633909,1.18906064,2102.5,2102.4,0.0011]
[1772698634220,1.73905255,2102.4,2102.1,0.0011]
[1772698634587,1.18906064,2102.5,2102.1,0.0011]
[1772698634800,1.18904886,2102.6,2102.1,0.0011]
[1772698635326,1.73905255,2102.4,2102.1,0.0011]
[1772698635987,1.18917376,2102.3,2102.1,0.0011]
[1772698636186,1.73905255,2102.2,2102.0,0.0011]
[1772698636380,1.73905255,2102.1,2102.0,0.0011]
[1772698636581,1.73905255,2102.1,2101.8,0.0011]
[1772698637427,1.73905255,2101.9,2100.9,2.96046287]
[1772698637719,1.73905255,2102.2,2101.0,1.77053749]
[1772698638012,1.18934348,2102.0,2101.2,1.77053749]
[1772698638212,2.92839603,2102.0,2101.2,1.77053749]
[1772698638409,1.73905255,2101.9,2101.1,4.15039042]
[1772698638729,1.18932234,2102.1,2101.2,1.76972574]
[1772698639385,2.8758178,2102.1,2101.2,1.76972574]
[1772698640298,2.8758178,2102.1,2101.3,1.18973968]
[1772698641018,2.8758178,2102.1,2101.3,2.95946542]
[1772698642425,1.68649546,2102.0,2101.3,2.95946542]
[1772698642826,1.68649546,2102.0,2101.1,2.37980779]
[1772698643030,1.68649546,2102.0,2100.7,4.76029029]
[1772698643204,1.18932234,2102.1,2100.9,1.76972574]
[1772698643407,2.8758178,2102.1,2100.9,1.76972574]
[1772698643825,1.68649546,2102.0,2100.9,1.76972574]
[1772698644131,1.68649546,2102.0,2101.0,2.95972574]
[1772698644504,1.18940006,2101.9,2101.1,2.95957867]
[1772698644700,1.18940006,2101.9,2101.3,0.0011]
[1772698645034,1.68649546,2101.8,2101.3,0.0011]
[1772698645400,1.68649546,2101.7,2101.3,0.0011]
[1772698645919,1.68649546,2101.4,2101.0,0.0011]
[1772698646115,1.68649546,2101.7,2101.0,0.0011]
[1772698646645,2.87606531,2101.6,2101.0,0.0011]
[1772698646848,1.68649546,2101.5,2100.6,2.38009493]
[1772698647151,1.68649546,2101.5,2100.6,4.13954541]
[1772698647848,1.68649546,2101.5,2100.6,2.38009493]
[1772698648034,1.18956985,2101.6,2100.7,1.75945048]
[1772698649060,4.7582794,2101.7,2100.9,1.75945048]
[1772698650249,6.45593247,2101.7,2100.9,1.75945048]
[1772698650448,6.45593247,2101.7,2100.6,2.94945048]
[1772698650449,1.69765307,2101.6,2100.6,2.94945048]
[1772698650652,1.69765307,2101.6,2100.6,1.75945048]
[1772698650822,1.69765307,2101.6,2100.4,5.01382401]
[1772698651150,1.69765307,2101.4,2100.4,6.77327449]
[1772698651551,1.69765307,2101.4,2100.5,1.75945048]
[1772698652442,1.69765307,2101.4,2100.5,2.94945048]
[1772698653125,1.18973968,2101.3,2100.6,1.19013615]
[1772698653324,2.88739275,2101.3,2100.6,1.19013615]
[1772698653742,2.88739275,2101.3,2100.6,2.94958663]
[1772698655449,1.18973968,2101.3,2100.7,1.75945048]
[1772698655649,1.76318907,2101.6,2100.7,1.75945048]
[1772698655650,2.88727952,2101.5,2100.7,1.75945048]
[1772698655851,1.69765307,2101.4,2100.7,1.75945048]
[1772698656846,1.18960196,2101.6,2100.7,1.75945048]
[1772698657184,2.88725503,2101.6,2100.7,1.75945048]
[1772698657454,1.69765307,2101.3,2100.7,1.19]
[1772698657630,1.69765307,2101.3,2100.6,1.19013615]
[1772698657953,1.69765307,2101.3,2100.8,0.0011]
[1772698658449,0.001,2101.1,2100.8,0.0011]
[1772698659042,0.001,2101.1,2100.8,1.76055048]
[1772698659242,2.88715213,2101.8,2100.8,1.76055048]
[1772698659445,2.88722292,2101.6,2100.9,1.1899662]
[1772698659624,1.18955297,2101.7,2101.0,1.75945048]
[1772698659952,1.18955297,2101.7,2101.0,2.94945048]
[1772698660343,2.88715072,2101.8,2101.0,1.19]
[1772698660549,2.88715072,2101.8,2101.1,1.75945048]
[1772698660721,1.18942079,2101.9,2101.1,1.75945048]
[1772698661139,2.88703673,2102.0,2101.1,1.75945048]
[1772698661459,2.88703673,2102.0,2101.3,1.75945048]
[1772698662347,1.18938366,2102.0,2101.3,1.75945048]
[1772698662775,1.69765307,2101.9,2101.2,1.1897963]
[1772698662975,1.69765307,2101.9,2101.1,1.18980643]
[1772698663345,1.69765307,2101.9,2101.0,4.14032325]
[1772698663670,2.88710972,2101.8,2101.0,4.14032325]
[1772698663968,1.69765307,2101.7,2101.0,2.94932325]
[1772698664180,1.69765307,2101.7,2101.0,4.14032325]
[1772698664362,1.69765307,2101.7,2101.0,3.70376925]
[1772698665369,1.69765307,2101.7,2101.0,2.51276925]
[1772698665676,2.88719408,2101.7,2101.0,3.70376925]
[1772698667676,1.18954101,2101.7,2100.9,1.18992327]
[1772698667863,2.78039477,2101.6,2100.9,2.38092327]
[1772698668174,1.69765307,2101.5,2100.9,2.38092327]
[1772698669351,1.69765307,2101.5,2100.9,4.11402806]
[1772698669750,2.94413964,2101.8,2101.0,1.73310479]
[1772698670783,1.75468299,2101.7,2101.0,1.73310479]
[1772698670978,0.001,2101.3,2101.0,1.73310479]
[1772698671180,2.94412465,2101.9,2101.0,1.73310479]
[1772698671378,2.7824973,2101.8,2101.0,1.73310479]
[1772698671690,4.53718029,2101.8,2101.0,1.73310479]
[1772698671893,2.94418011,2101.8,2101.1,2.92295772]
[1772698672982,2.94400711,2102.1,2101.2,1.73310479]
[1772698673879,2.94400711,2102.1,2101.3,1.18973968]
[1772698674063,2.94400711,2102.1,2101.4,1.193]
[1772698674378,2.94400711,2102.1,2101.4,2.92610479]
[1772698675269,2.94383707,2102.4,2101.5,1.73310479]
[1772698675878,1.18923033,2102.2,2101.5,2.92271164]
[1772698676079,1.75468299,2102.1,2101.5,2.92271164]
[1772698677286,1.18922013,2102.3,2101.5,2.92271164]
[1772698677588,2.94390312,2102.3,2101.6,1.73310479]
[1772698677790,1.75468299,2102.2,2101.6,1.73310479]
[1772698677981,1.75468299,2102.2,2101.5,1.18960685]
[1772698678674,2.94396989,2102.1,2101.4,2.92274715]
[1772698678984,2.94396989,2102.1,2101.5,1.194]
[1772698679721,2.94396989,2102.1,2101.5,2.92710479]
[1772698679889,1.18924003,2102.2,2101.6,1.73310479]
[1772698680099,2.94389666,2102.3,2101.6,1.73310479]
[1772698680392,1.75468299,2102.2,2101.1,4.11695772]
[1772698680685,1.18934348,2102.0,2101.3,1.18973968]
[1772698680863,1.18934348,2102.0,2101.4,1.73310479]
[1772698681056,2.94397786,2102.1,2101.4,1.73310479]
[1772698681986,1.75468299,2102.0,2101.4,1.73310479]
[1772698682493,1.75468299,2102.0,2101.3,1.194]
[1772698682788,2.94408305,2101.9,2101.4,1.18968306]
[1772698683001,2.94508305,2101.9,2101.4,1.18968306]
[1772698683295,1.75468299,2101.8,2101.2,1.73310479]
[1772698683495,1.75468299,2101.8,2101.2,1.1897901]
[1772698683896,1.75468299,2101.8,2101.1,0.0011]
[1772698684768,1.75468299,2101.7,2101.1,1.73420479]
[1772698684964,1.18946051,2101.8,2101.1,1.73420479]
[1772698685176,2.9441435,2101.8,2101.1,1.73420479]
[1772698685596,1.75468299,2101.7,2101.1,1.73420479]
[1772698686379,1.18946051,2101.8,2101.1,1.73420479]
[1772698686578,2.9441435,2101.8,2101.1,1.73420479]
[1772698687102,2.9441435,2101.8,2101.1,2.92401037]
[1772698688487,2.9441435,2101.8,2101.2,1.73310479]
[1772698689005,2.9441435,2101.8,2101.2,2.92285994]
[1772698689706,0.001,2101.9,2101.3,1.73310479]
[1772698690307,1.75468299,2102.4,2101.4,1.73310479]
[1772698690490,2.94382961,2102.4,2101.4,1.73310479]
[1772698691023,1.18923033,2102.2,2101.5,2.92273124]
[1772698691180,2.94391332,2102.2,2101.5,2.92273124]
[1772698691380,2.94391332,2102.2,2101.5,4.11873124]
[1772698691621,1.75468299,2102.1,2101.5,4.11873124]
[1772698692279,1.75468299,2102.1,2101.4,1.189651]
[1772698692480,1.75468299,2102.1,2101.4,4.11875579]
[1772698692688,1.75468299,2102.1,2101.5,1.73310479]
[1772698693698,2.94402628,2102.1,2101.6,1.18956985]
[1772698693894,2.94402628,2102.1,2101.5,2.3855915]
[1772698694090,2.94402628,2102.1,2101.5,1.1895915]
[1772698694493,1.75468299,2102.0,2101.2,4.11985655]
[1772698694730,2.94394072,2102.2,2101.3,1.73310479]
[1772698694880,1.75468299,2102.1,2101.3,1.73310479]
[1772698695087,1.75468299,2102.1,2101.4,1.197]
[1772698695414,1.75468299,2102.1,2101.5,1.73310479]
[1772698695717,1.75468299,2102.1,2101.4,1.1981]
[1772698695920,2.94502647,2102.0,2101.4,2.38773713]
[1772698696089,2.94502647,2102.0,2101.4,4.12084192]
[1772698697312,1.75568299,2102.0,2101.4,4.12084192]
[1772698697701,0.001,2102.0,2101.5,1.73310479]
[1772698698788,0.001,2102.0,2101.2,4.75916107]
[1772698698789,1.65224353,2101.9,2101.2,1.198]
[1772698700094,2.78877831,2101.8,2101.1,4.05201098]
[1772698700432,1.65224353,2101.7,2101.1,4.05201098]
[1772698701125,2.84180338,2101.7,2101.1,4.05201098]
[1772698701327,1.65224353,2101.6,2101.2,1.199]
[1772698701491,1.65224353,2101.6,2101.1,2.85401098]
[1772698701492,1.65224353,2101.6,2101.1,0.0011]
[1772698701830,1.65224353,2101.6,2101.1,1.19094835]